bitfinex/quotes_BTCUSD_20240929
["timestamp","ask_amount","ask_price","bid_price","bid_amount"]
[1727623603947,0.15192,65824.0,65823.0,0.22897356]
[1727623604616,0.17838526,65824.0,65823.0,0.000828]
[1727623605546,0.18238526,65824.0,65823.0,0.000828]
[1727623605761,0.18638526,65824.0,65823.0,0.000828]
[1727623620770,0.20938526,65824.0,65823.0,0.000828]
[1727623621036,0.26660165,65824.0,65823.0,0.000828]
[1727623621550,0.31197349,65824.0,65823.0,0.000828]
[1727623621811,0.30797349,65824.0,65823.0,0.000828]
[1727623622054,0.25860165,65824.0,65823.0,0.000828]
[1727623622312,0.28260165,65824.0,65823.0,0.000828]
[1727623622791,0.27060165,65824.0,65823.0,0.000828]
[1727623623049,0.25860165,65824.0,65823.0,0.000828]
[1727623623287,0.27260165,65824.0,65823.0,0.000828]
[1727623623502,0.34065941,65824.0,65823.0,0.000828]
[1727623624171,0.36447674,65824.0,65823.0,0.000828]
[1727623624467,0.35465941,65824.0,65823.0,0.000828]
[1727623624693,0.51612797,65824.0,65823.0,0.000828]
[1727623625366,0.50212797,65824.0,65823.0,0.000828]
[1727623625583,0.59288953,65824.0,65823.0,0.000828]
[1727623625796,0.50212797,65824.0,65823.0,0.000828]
[1727623626021,0.51612797,65824.0,65823.0,0.000828]
[1727623626715,0.62954302,65824.0,65823.0,0.000828]
[1727623628030,0.63154302,65824.0,65823.0,0.000828]
[1727623628510,0.51811341,65824.0,65823.0,0.000828]
[1727623629848,0.59880386,65824.0,65823.0,0.000828]
[1727623632023,0.59877058,65824.0,65823.0,0.000828]
[1727623633645,0.59888382,65824.0,65823.0,0.000828]
[1727623634287,0.73521341,65824.0,65823.0,0.000828]
[1727623634721,0.85441627,65824.0,65823.0,0.000828]
[1727623634934,0.58488382,65824.0,65823.0,0.000828]
[1727623635578,0.57088382,65824.0,65823.0,0.000828]
[1727623635912,0.59688382,65824.0,65823.0,0.000828]
[1727623636288,0.58288382,65824.0,65823.0,0.000828]
[1727623636718,0.59688382,65824.0,65823.0,0.000828]
[1727623637392,0.54466743,65824.0,65823.0,0.000828]
[1727623638288,0.54482707,65824.0,65823.0,0.000828]
[1727623642900,0.54502005,65824.0,65823.0,0.000828]
[1727623646529,0.64402005,65824.0,65823.0,0.000828]
[1727623646913,0.174934,65818.0,65817.0,0.000827]
[1727623647124,0.33438815,65818.0,65817.0,0.000827]
[1727623647333,0.54345391,65818.0,65817.0,0.000827]
[1727623647759,0.58355493,65818.0,65817.0,0.000827]
[1727623648406,0.58855493,65818.0,65817.0,0.000827]
[1727623648619,0.60155493,65818.0,65817.0,0.000827]
[1727623648836,0.58855493,65818.0,65817.0,0.000827]
[1727623649045,0.58855493,65818.0,65811.0,0.000828]
[1727623649046,0.179947,65812.0,65811.0,0.000828]
[1727623649262,0.66532503,65812.0,65811.0,0.000828]
[1727623649487,0.51175738,65812.0,65811.0,0.000828]
[1727623650432,0.51440398,65812.0,65811.0,0.000828]
[1727623650991,0.52240398,65812.0,65811.0,0.000828]
[1727623651238,0.62930553,65812.0,65811.0,0.000828]
[1727623651904,0.6390884,65812.0,65811.0,0.000828]
[1727623652124,0.6530884,65812.0,65811.0,0.000828]
[1727623652353,0.6450884,65812.0,65811.0,0.000828]
[1727623652575,0.6590884,65812.0,65811.0,0.000828]
[1727623652789,0.6570884,65812.0,65811.0,0.000828]
[1727623653479,0.81246364,65812.0,65811.0,0.000828]
[1727623653930,0.89536364,65812.0,65811.0,0.000828]
[1727623654146,0.99206364,65812.0,65811.0,0.000828]
[1727623654358,1.25047168,65812.0,65811.0,0.000828]
[1727623654779,1.25047168,65812.0,65799.0,0.000827]
[1727623654780,0.005,65803.0,65799.0,0.000827]
[1727623655036,0.483909,65803.0,65802.0,0.22814556]
[1727623655270,0.174975,65800.0,65799.0,0.000827]
[1727623655504,0.54633074,65800.0,65799.0,0.000827]
[1727623655712,0.61186118,65800.0,65799.0,0.000827]
[1727623655930,0.70271852,65800.0,65799.0,0.000827]
[1727623656394,0.61186118,65800.0,65799.0,0.000827]
[1727623656610,0.70270226,65800.0,65799.0,0.000827]
[1727623656826,0.71570226,65800.0,65799.0,0.000827]
[1727623657483,0.5593142,65800.0,65799.0,0.000827]
[1727623658338,0.5723142,65800.0,65799.0,0.000827]
[1727623659007,0.5593142,65800.0,65799.0,0.000827]
[1727623659215,0.5733142,65800.0,65799.0,0.000827]
[1727623659433,0.50629771,65800.0,65799.0,0.000827]
[1727623659644,0.64868577,65800.0,65799.0,0.000827]
[1727623660089,0.63568577,65800.0,65799.0,0.000827]
[1727623660298,0.64968577,65800.0,65799.0,0.000827]
[1727623660727,0.65468577,65800.0,65799.0,0.000827]
[1727623661164,0.76827754,65800.0,65799.0,0.000827]
[1727623661375,0.78427754,65800.0,65799.0,0.000827]
[1727623661845,0.64268577,65800.0,65799.0,0.000827]
[1727623662068,0.67068577,65800.0,65799.0,0.000827]
[1727623662538,0.65668577,65800.0,65799.0,0.000827]
[1727623662750,0.63286118,65800.0,65799.0,0.000827]
[1727623662954,0.64686118,65800.0,65799.0,0.000827]
[1727623663371,0.63286118,65800.0,65799.0,0.000827]
[1727623663598,0.74686118,65800.0,65799.0,0.000827]
[1727623664477,0.73286118,65800.0,65799.0,0.000827]
[1727623664721,0.74686118,65800.0,65799.0,0.000827]
[1727623664927,0.181987,65795.0,65794.0,0.0025192]
[1727623665170,0.46428346,65795.0,65794.0,0.0025192]
[1727623665582,0.45756704,65795.0,65794.0,0.0025192]
[1727623666239,0.69057621,65795.0,65794.0,0.0025192]
[1727623666496,0.55446704,65795.0,65794.0,0.0025192]
[1727623666728,0.88003991,65795.0,65794.0,0.0025192]
[1727623667401,0.86603991,65795.0,65794.0,0.0025192]
[1727623667628,0.97778135,65795.0,65794.0,0.0025192]
[1727623667866,0.182001,65789.0,65788.0,0.000827]
[1727623668096,0.82719396,65789.0,65788.0,0.000827]
[1727623668316,0.91481078,65789.0,65788.0,0.000827]
[1727623669418,0.92881078,65789.0,65788.0,0.000827]
[1727623669627,0.97144233,65789.0,65788.0,0.000827]
[1727623669834,1.21929294,65789.0,65788.0,0.000827]
[1727623670059,0.79366676,65789.0,65788.0,0.000827]
[1727623670295,0.99320599,65789.0,65788.0,0.000827]
[1727623670538,1.21253149,65789.0,65788.0,0.000827]
[1727623670746,1.22571001,65789.0,65788.0,0.000827]
[1727623670962,1.21171001,65789.0,65788.0,0.000827]
[1727623671180,0.96572343,65789.0,65788.0,0.000827]
[1727623671387,0.97972343,65789.0,65788.0,0.000827]
[1727623671595,1.06858458,65789.0,65788.0,0.000827]
[1727623672028,1.06658458,65789.0,65788.0,0.000827]
[1727623672253,1.06858458,65789.0,65788.0,0.000827]
[1727623672455,0.93276769,65789.0,65788.0,0.000827]
[1727623672668,0.90893316,65789.0,65788.0,0.000827]
[1727623672871,0.90878746,65789.0,65788.0,0.000827]
[1727623674817,0.005,65779.0,65775.0,0.0026]
[1727623675036,0.303346,65779.0,65776.0,0.0997]
[1727623675274,0.175028,65777.0,65776.0,0.0997]
[1727623675509,0.19704091,65777.0,65776.0,0.0997]
[1727623676606,0.19204091,65777.0,65776.0,0.0997]
[1727623676815,0.19704091,65777.0,65776.0,0.0997]
[1727623677243,0.29939515,65777.0,65776.0,0.0997]
[1727623677669,0.29939515,65777.0,65775.0,0.0026]
[1727623677670,0.180031,65776.0,65775.0,0.0026]
[1727623677883,0.19704931,65776.0,65775.0,0.0026]
[1727623678327,0.19904931,65776.0,65775.0,0.0026]
[1727623678541,0.27581301,65776.0,65775.0,0.0026]
[1727623678968,0.28981301,65776.0,65775.0,0.0026]
[1727623679624,0.30381301,65776.0,65775.0,0.0026]
[1727623679837,0.35103163,65776.0,65775.0,0.0026]
[1727623680494,0.30381301,65776.0,65775.0,0.0026]
[1727623680711,0.30581301,65776.0,65775.0,0.0026]
[1727623681783,0.29181301,65776.0,65775.0,0.0026]
[1727623682076,0.37364094,65776.0,65775.0,0.0026]
[1727623682319,0.37164094,65776.0,65775.0,0.0026]
[1727623682544,0.35964094,65776.0,65775.0,0.0026]
[1727623682748,0.33501497,65776.0,65775.0,0.0026]
[1727623683168,0.34901497,65776.0,65775.0,0.0026]
[1727623683375,0.28981301,65776.0,65775.0,0.0026]
[1727623683602,0.34901497,65776.0,65775.0,0.0026]
[1727623684058,0.52771497,65776.0,65775.0,0.0026]
[1727623684287,0.59251301,65776.0,65775.0,0.0026]
[1727623684521,0.157054,65766.0,65761.0,0.40314556]
[1727623684979,0.17402252,65766.0,65761.0,0.40314556]
[1727623685184,0.19902252,65766.0,65761.0,0.175]
[1727623685609,0.19702252,65766.0,65761.0,0.175]
[1727623686689,0.21102252,65766.0,65761.0,0.175]
[1727623686888,0.28741308,65766.0,65761.0,0.175]
[1727623687304,0.30141308,65766.0,65761.0,0.175]
[1727623688410,0.30141308,65766.0,65765.0,0.013903]
[1727623689685,0.3823572,65766.0,65765.0,0.013903]
[1727623689909,0.3593572,65766.0,65765.0,0.013903]
[1727623690124,0.38319557,65766.0,65765.0,0.013903]
[1727623691013,0.385844,65766.0,65765.0,0.013903]
[1727623692359,0.30489988,65766.0,65765.0,0.013903]
[1727623692793,0.28106151,65766.0,65765.0,0.013903]
[1727623692994,0.25306151,65766.0,65765.0,0.013903]
[1727623693207,0.19067095,65766.0,65765.0,0.188903]
[1727623693412,0.19967095,65766.0,65765.0,0.188903]
[1727623693850,0.18567095,65766.0,65765.0,0.188903]
[1727623694052,0.17167095,65766.0,65765.0,0.188903]
[1727623694266,0.30586461,65766.0,65765.0,0.188903]
[1727623694477,0.31986461,65766.0,65765.0,0.188903]
[1727623695220,0.30586461,65766.0,65765.0,0.188903]
[1727623696308,0.29186461,65766.0,65765.0,0.188903]
[1727623696508,0.30586461,65766.0,65765.0,0.188903]
[1727623696745,0.31986461,65766.0,65765.0,0.188903]
[1727623698742,0.36513157,65766.0,65765.0,0.188903]
[1727623698976,0.31986461,65766.0,65765.0,0.188903]
[1727623699943,0.19967095,65766.0,65765.0,0.188903]
[1727623700586,0.24493791,65766.0,65765.0,0.188903]
[1727623701314,0.24498124,65766.0,65765.0,0.188903]
[1727623701537,0.19967095,65766.0,65765.0,0.188903]
[1727623701982,0.19702252,65766.0,65765.0,0.188903]
[1727623702204,0.04496852,65766.0,65765.0,0.188903]
[1727623702418,0.04496852,65766.0,65765.0,0.340959]
[1727623702879,0.01696852,65766.0,65765.0,0.188903]
[1727623703138,0.04532077,65773.0,65765.0,0.188903]
[1727623703358,0.04293984,65766.0,65765.0,0.013903]
[1727623703570,0.013,65766.0,65765.0,0.013903]
[1727623703777,0.0209408,65766.0,65765.0,0.190803]
[1727623703981,0.008,65766.0,65765.0,0.190803]
[1727623704194,0.008,65766.0,65765.0,0.342859]
[1727623704395,0.0249408,65766.0,65765.0,0.190803]
[1727623704802,0.0249408,65766.0,65765.0,0.342859]
[1727623705027,0.008,65766.0,65765.0,0.342859]
[1727623705220,0.0249408,65766.0,65765.0,0.342859]
[1727623706464,0.008,65766.0,65765.0,0.342859]
[1727623707104,0.004,65766.0,65765.0,0.342859]
[1727623707313,0.22814556,65774.0,65765.0,0.342859]
[1727623707314,0.22814556,65774.0,65773.0,0.1769]
[1727623707565,0.22814556,65774.0,65773.0,0.30019497]
[1727623707758,0.01693886,65774.0,65773.0,0.12329497]
[1727623707970,0.04077219,65774.0,65773.0,0.12329497]
[1727623708185,0.19280719,65774.0,65773.0,0.30019497]
[1727623708394,0.04077219,65774.0,65773.0,0.30019497]
[1727623709281,0.04077219,65774.0,65773.0,0.45223297]
[1727623709521,0.04577219,65774.0,65773.0,0.45223297]
[1727623709954,0.03283333,65774.0,65773.0,0.45223297]
[1727623711557,0.03283333,65774.0,65773.0,0.1769]
[1727623711770,0.24912746,65774.0,65773.0,0.1769]
[1727623711972,0.26607547,65774.0,65773.0,0.1769]
[1727623712838,0.24224214,65774.0,65773.0,0.1769]
[1727623714327,0.17798301,65774.0,65773.0,0.1769]
[1727623715281,0.22341952,65774.0,65773.0,0.177728]
[1727623715487,0.17798301,65774.0,65773.0,0.177728]
[1727623715692,0.24613777,65774.0,65773.0,0.177728]
[1727623718427,0.24613777,65774.0,65773.0,0.000828]
[1727623718647,0.35217538,65774.0,65773.0,0.000828]
[1727623719029,0.55067369,65774.0,65773.0,0.000828]
[1727623719598,0.55060567,65774.0,65773.0,0.000828]
[1727623719796,0.45976535,65774.0,65773.0,0.000828]
[1727623720451,0.48359992,65774.0,65773.0,0.000828]
[1727623721657,0.37756231,65774.0,65773.0,0.000828]
[1727623721992,0.20181758,65774.0,65773.0,0.000828]
[1727623722432,0.26994759,65774.0,65773.0,0.000828]
[1727623722640,0.24611302,65774.0,65773.0,0.000828]
[1727623724480,0.24611156,65774.0,65773.0,0.000828]
[1727623726974,0.17798301,65774.0,65773.0,0.000828]
[1727623727404,0.24611156,65774.0,65773.0,0.000828]
[1727623727852,0.38254488,65774.0,65773.0,0.000828]
[1727623730154,0.26994595,65774.0,65773.0,0.000828]
[1727623732367,0.2018174,65774.0,65773.0,0.000828]
[1727623732578,0.46846999,65774.0,65773.0,0.000828]
[1727623732786,0.4446356,65774.0,65773.0,0.000828]
[1727623733052,0.17798301,65774.0,65773.0,0.000828]
[1727623733529,0.35378136,65774.0,65773.0,0.000828]
[1727623733709,0.34978136,65774.0,65773.0,0.000828]
[1727623733934,0.49439955,65774.0,65773.0,0.000828]
[1727623734339,0.50539955,65774.0,65773.0,0.000828]
[1727623734997,0.61896408,65774.0,65773.0,0.000828]
[1727623735677,0.50539955,65774.0,65773.0,0.000828]
[1727623736668,0.55252879,65774.0,65773.0,0.000828]
[1727623737790,0.4139106,65774.0,65773.0,0.25131888]
[1727623738212,0.23811225,65774.0,65773.0,0.25131888]
[1727623740331,0.19098301,65774.0,65773.0,0.25131888]
[1727623740586,0.21481753,65774.0,65773.0,0.25131888]
[1727623740997,0.19098301,65774.0,65773.0,0.25131888]
[1727623742847,0.03894801,65774.0,65773.0,0.40335688]
[1727623743293,0.03894801,65774.0,65773.0,0.25131888]
[1727623743708,0.02794801,65774.0,65773.0,0.25131888]
[1727623743958,0.01694801,65774.0,65773.0,0.25131888]
[1727623744186,0.02594801,65774.0,65773.0,0.25131888]
[1727623745296,0.009,65774.0,65773.0,0.25131888]
[1727623745513,0.02598224,65774.0,65773.0,0.48930607]
[1727623746395,0.02098224,65774.0,65773.0,0.40335688]
[1727623746607,0.02098224,65774.0,65773.0,0.50335688]
[1727623746822,0.01698224,65774.0,65773.0,0.50335688]
[1727623747907,0.06986291,65775.0,65774.0,0.421635]
[1727623749462,0.001656,65775.0,65774.0,0.421635]
[1727623749666,0.001656,65775.0,65774.0,0.54486798]
[1727623750068,0.02119531,65775.0,65774.0,0.54486798]
[1727623750321,0.001656,65775.0,65774.0,0.54486798]
[1727623750790,0.002656,65775.0,65774.0,0.54486798]
[1727623751047,0.001656,65775.0,65774.0,0.54486798]
[1727623751262,0.002656,65775.0,65774.0,0.54486798]
[1727623751465,0.02213772,65775.0,65774.0,0.54486798]
[1727623751679,0.002656,65775.0,65774.0,0.54486798]
[1727623751900,0.02213772,65775.0,65774.0,0.54486798]
[1727623752136,0.002656,65775.0,65774.0,0.54486798]
[1727623752436,0.02218385,65775.0,65774.0,0.54486798]
[1727623752662,0.02213772,65775.0,65774.0,0.54486798]
[1727623753766,0.002656,65775.0,65774.0,0.54486798]
[1727623755151,0.02218385,65775.0,65774.0,0.54486798]
[1727623755355,0.002656,65775.0,65774.0,0.54486798]
[1727623755584,0.02218385,65775.0,65774.0,0.54486798]
[1727623755771,0.002656,65775.0,65774.0,0.54486798]
[1727623756195,0.02218385,65775.0,65774.0,0.54486798]
[1727623756405,0.002656,65775.0,65774.0,0.54486798]
[1727623760555,0.002656,65775.0,65774.0,0.69066228]
[1727623761425,0.002656,65775.0,65774.0,0.54486798]
[1727623771820,0.002656,65775.0,65774.0,0.50249059]
[1727623772495,0.002656,65775.0,65774.0,0.5182306]
[1727623774186,0.002656,65775.0,65774.0,0.5190576]
[1727623777232,0.002656,65775.0,65774.0,0.50331759]
[1727623778530,0.002656,65775.0,65774.0,0.51912956]
[1727623793465,0.002656,65775.0,65774.0,0.66342755]
[1727623794848,0.002656,65775.0,65774.0,0.51912956]
[1727623797242,0.02146745,65775.0,65774.0,0.51912956]
[1727623797465,0.002656,65775.0,65774.0,0.51912956]
[1727623797686,0.02146745,65775.0,65774.0,0.51912956]
[1727623797911,0.002656,65775.0,65774.0,0.51912956]
[1727623798119,0.02146745,65775.0,65774.0,0.51912956]
[1727623800811,0.02146745,65775.0,65774.0,0.50331759]
[1727623803052,0.02146745,65775.0,65774.0,0.51925779]
[1727623804349,0.02146745,65775.0,65774.0,0.66249107]
[1727623804946,0.02146745,65775.0,65774.0,0.51925779]
[1727623808008,0.02146745,65775.0,65774.0,0.34965779]
[1727623808502,0.08987397,65775.0,65774.0,0.34965779]
[1727623808727,0.02146745,65775.0,65774.0,0.34965779]
[1727623809362,0.06706743,65775.0,65774.0,0.34965779]
[1727623809604,0.0670642,65775.0,65774.0,0.34965779]
[1727623811284,0.02146745,65775.0,65774.0,0.34965779]
[1727623811495,0.06706442,65775.0,65774.0,0.34965779]
[1727623812325,0.06706442,65775.0,65774.0,0.33371759]
[1727623813386,0.02146745,65775.0,65774.0,0.33371759]
[1727623817435,0.02146745,65775.0,65774.0,0.34949619]
[1727623817652,0.002656,65775.0,65774.0,0.34949619]
[1727623819254,0.002656,65775.0,65774.0,0.36521687]
[1727623819644,0.002656,65775.0,65774.0,0.33371759]
[1727623824041,0.02150557,65775.0,65774.0,0.33371759]
[1727623826596,0.06709793,65775.0,65774.0,0.33371759]
[1727623826810,0.06708599,65775.0,65774.0,0.33371759]
[1727623827042,0.02150557,65775.0,65774.0,0.33371759]
[1727623831295,0.002656,65775.0,65774.0,0.33371759]
[1727623833701,0.02151167,65775.0,65774.0,0.33371759]
[1727623839901,0.06709243,65775.0,65774.0,0.33371759]
[1727623840324,0.02151167,65775.0,65774.0,0.33371759]
[1727623841696,0.06709243,65775.0,65774.0,0.33371759]
[1727623841916,0.02151167,65775.0,65774.0,0.33371759]
[1727623852474,0.0671011,65775.0,65774.0,0.33371759]
[1727623855652,0.02151167,65775.0,65774.0,0.33371759]
[1727623856489,0.06711174,65775.0,65774.0,0.33371759]
[1727623857464,0.02151167,65775.0,65774.0,0.33371759]
[1727623861427,0.08992192,65775.0,65774.0,0.33371759]
[1727623862953,0.06711882,65775.0,65774.0,0.33371759]
[1727623866754,0.06711882,65775.0,65774.0,0.34946831]
[1727623868158,0.02151167,65775.0,65774.0,0.52566831]
[1727623868610,0.002656,65775.0,65774.0,0.52566831]
[1727623874357,0.002656,65775.0,65774.0,0.67229221]
[1727623874634,0.02382985,65784.0,65779.0,0.227124]
[1727623874948,0.11397794,65804.0,65786.0,0.1]
[1727623875180,0.3039,65812.0,65786.0,0.1]
[1727623875181,0.11397794,65809.0,65794.0,0.33284459]
[1727623875440,0.0812,65812.0,65794.0,0.33284459]
[1727623875441,0.0812,65812.0,65794.0,0.50404459]
[1727623875957,0.151951,65811.0,65794.0,0.50404459]
[1727623876181,0.11397794,65811.0,65794.0,0.50404459]
[1727623876409,0.0812,65812.0,65794.0,0.50404459]
[1727623877579,0.002656,65795.0,65794.0,0.50604459]
[1727623877998,0.003656,65795.0,65794.0,0.50704459]
[1727623882313,0.003656,65795.0,65794.0,0.82723579]
[1727623882531,0.001654,65817.0,65816.0,0.23279359]
[1727623883402,0.0421252,65817.0,65816.0,0.23279359]
[1727623883641,0.0421252,65817.0,65816.0,0.235832]
[1727623883642,0.001654,65817.0,65816.0,0.235832]
[1727623883882,0.001654,65817.0,65816.0,0.3201933]
[1727623883883,0.015654,65817.0,65816.0,0.3201933]
[1727623884097,0.015654,65817.0,65816.0,0.31715489]
[1727623884556,0.029654,65817.0,65816.0,0.31815489]
[1727623884802,0.015654,65817.0,65816.0,0.31715489]
[1727623885025,0.015654,65817.0,65816.0,0.39225489]
[1727623885026,0.001654,65817.0,65816.0,0.39225489]
[1727623885253,0.003654,65817.0,65816.0,0.40325489]
[1727623885970,0.003654,65817.0,65816.0,0.49935489]
[1727623892014,0.003654,65817.0,65816.0,0.59935489]
[1727623892882,0.003654,65817.0,65816.0,0.77764283]
[1727623897596,0.003654,65817.0,65816.0,0.81981783]
[1727623897801,0.003654,65817.0,65816.0,0.83077402]
[1727623898670,0.003654,65817.0,65816.0,0.55716859]
[1727623899299,0.003654,65817.0,65816.0,0.38596859]
[1727623899724,0.003654,65817.0,65816.0,0.262938]
[1727623899938,0.003654,65817.0,65816.0,0.011]
[1727623899939,0.15559,65817.0,65816.0,0.011]
[1727623900167,0.03439571,65817.0,65816.0,0.011]
[1727623900376,0.18633171,65817.0,65816.0,0.011]
[1727623900792,0.18533171,65817.0,65816.0,0.009]
[1727623901010,0.151941,65815.0,65812.0,0.12303059]
[1727623901470,0.03074105,65814.0,65812.0,0.27497759]
[1727623901896,0.006654,65817.0,65813.0,0.151945]
[1727623902107,0.03074105,65813.0,65812.0,0.27497759]
[1727623902322,0.151939,65816.0,65812.0,0.12303059]
[1727623902791,0.03074105,65815.0,65812.0,0.12303059]
[1727623903028,0.03074105,65815.0,65810.0,0.1]
[1727623903283,0.151944,65814.0,65810.0,0.25195]
[1727623903726,0.03060393,65813.0,65810.0,0.25195]
[1727623904590,0.15195,65811.0,65810.0,0.001]
[1727623905014,0.02508815,65811.0,65806.0,0.22814556]
[1727623905216,0.151959,65807.0,65806.0,0.22814556]
[1727623905683,0.17703433,65807.0,65804.0,0.1]
[1727623906316,0.02507533,65807.0,65804.0,0.1]
[1727623906524,0.02507533,65807.0,65806.0,0.12303059]
[1727623906736,0.151956,65809.0,65806.0,0.12303059]
[1727623907021,0.02504119,65807.0,65806.0,0.27499159]
[1727623907242,0.02504272,65808.0,65807.0,0.303916]
[1727623907460,0.151945,65814.0,65807.0,0.42694659]
[1727623907666,0.151945,65814.0,65813.0,0.12303059]
[1727623908523,0.1769699,65814.0,65813.0,0.12303059]
[1727623908946,0.1799699,65814.0,65813.0,0.12303059]
[1727623909577,0.151951,65811.0,65809.0,0.12303059]
[1727623910006,0.02501875,65810.0,65809.0,0.12303059]
[1727623911143,0.151951,65811.0,65809.0,0.12503059]
[1727623911346,0.02501875,65810.0,65809.0,0.12503059]
[1727623911551,0.02501875,65810.0,65809.0,0.12603059]
[1727623911752,0.151951,65811.0,65809.0,0.12603059]
[1727623912201,0.02501875,65810.0,65809.0,0.12603059]
[1727623912836,0.02501875,65810.0,65809.0,0.12403059]
[1727623913262,0.02501875,65810.0,65809.0,0.12503059]
[1727623913521,0.02501875,65810.0,65809.0,0.12303059]
[1727623913983,0.02501875,65810.0,65809.0,0.12503059]
[1727623914670,0.02501875,65810.0,65809.0,0.12603059]
[1727623916121,0.17697075,65810.0,65809.0,0.12603059]
[1727623918111,0.17697075,65810.0,65809.0,0.003]
[1727623927590,0.17697075,65810.0,65809.0,0.08379435]
[1727623928060,0.02501875,65810.0,65809.0,0.08379435]
[1727623928276,0.17697075,65810.0,65809.0,0.08379435]
[1727623930465,0.02501875,65810.0,65809.0,0.08379435]
[1727623930678,0.17697075,65810.0,65809.0,0.08379435]
[1727623932221,0.22241805,65810.0,65809.0,0.08379435]
[1727623932433,0.17697075,65810.0,65809.0,0.08379435]
[1727623934910,0.17697075,65810.0,65809.0,0.003]
[1727623934911,0.37326803,65810.0,65809.0,0.003]
[1727623935160,0.67396049,65810.0,65809.0,0.003]
[1727623935385,0.81033255,65810.0,65809.0,0.003]
[1727623935596,0.81030184,65810.0,65809.0,0.003]
[1727623935835,0.81030521,65810.0,65809.0,0.003]
[1727623936277,0.57486321,65810.0,65809.0,0.002]
[1727623936547,0.151975,65800.0,65799.0,0.22814556]
[1727623936762,0.19741665,65800.0,65799.0,0.22814556]
[1727623937000,0.22865864,65800.0,65798.0,0.08079435]
[1727623937238,0.18321699,65800.0,65798.0,0.08079435]
[1727623937717,0.03124199,65800.0,65797.0,0.12314679]
[1727623938166,0.03524199,65800.0,65797.0,0.12314679]
[1727623938310,0.151977,65799.0,65798.0,0.001]
[1727623938730,0.18319275,65799.0,65798.0,0.001]
[1727623939581,0.18319275,65799.0,65797.0,0.12314679]
[1727623940635,0.18819275,65799.0,65797.0,0.12314679]
[1727623941035,0.18319275,65799.0,65797.0,0.12314679]
[1727623941242,0.18519275,65799.0,65797.0,0.12314679]
[1727623941444,0.18819275,65799.0,65797.0,0.12314679]
[1727623942257,0.18819475,65799.0,65797.0,0.12314679]
[1727623942488,0.03621575,65799.0,65797.0,0.12314679]
[1727623942895,0.18819375,65799.0,65797.0,0.12314679]
[1727623945278,0.08165134,65799.0,65797.0,0.12314679]
[1727623945486,0.23362934,65799.0,65797.0,0.12314679]
[1727623947213,0.08165134,65799.0,65797.0,0.12314679]
[1727623948399,0.08165134,65799.0,65798.0,0.15198]
[1727623948610,0.08165134,65799.0,65797.0,0.27512879]
[1727623949243,0.08165134,65799.0,65798.0,0.15198]
[1727623949469,0.08165134,65799.0,65798.0,0.65065453]
[1727623949686,0.03321575,65799.0,65798.0,0.41946948]
[1727623949894,0.002,65799.0,65798.0,0.41946948]
[1727623950102,0.04543559,65806.0,65798.0,0.26748948]
[1727623950329,0.04543559,65806.0,65805.0,0.27111079]
[1727623950557,0.04543559,65806.0,65805.0,0.26811079]
[1727623951751,0.04543559,65806.0,65805.0,0.44721079]
[1727623951972,0.17669597,65809.0,65805.0,0.44721079]
[1727623951973,0.04543559,65809.0,65805.0,0.30224679]
[1727623952188,0.001654,65810.0,65809.0,0.151954]
[1727623952406,0.001654,65810.0,65809.0,0.27510079]
[1727623952830,0.001654,65810.0,65809.0,0.35520079]
[1727623953042,0.001654,65810.0,65809.0,0.35120079]
[1727623953685,0.002654,65810.0,65809.0,0.35120079]
[1727623953904,0.002654,65810.0,65809.0,0.48739757]
[1727623954121,0.001654,65810.0,65809.0,0.48939757]
[1727623954331,0.001654,65810.0,65809.0,0.49039757]
[1727623954762,0.001654,65810.0,65809.0,0.58209757]
[1727623957631,0.001654,65810.0,65809.0,0.53971608]
[1727623959587,0.001654,65810.0,65809.0,0.4035193]
[1727623964040,0.001654,65810.0,65809.0,0.4005193]
[1727623964281,0.002654,65810.0,65809.0,0.4065193]
[1727623965506,0.002654,65810.0,65809.0,0.4105193]
[1727623965752,0.001654,65810.0,65809.0,0.4005193]
[1727623966012,0.003654,65810.0,65809.0,0.4195193]
[1727623974209,0.003654,65810.0,65809.0,0.4203463]
[1727623976051,0.00347111,65810.0,65809.0,0.4203463]
[1727623989532,0.00347111,65810.0,65809.0,0.167781]
[1727623989733,0.00347111,65810.0,65809.0,0.2485463]
[1727623991682,0.00247111,65810.0,65809.0,0.2365463]
[1727623992225,0.00247111,65810.0,65809.0,0.2395463]
[1727623992451,0.00347111,65810.0,65809.0,0.2455463]
[1727623992907,0.00247111,65810.0,65809.0,0.2295463]
[1727623993114,0.00147111,65810.0,65809.0,0.2295463]
[1727623993250,0.00247111,65810.0,65809.0,0.2395463]
[1727623993900,0.00347111,65810.0,65809.0,0.2445463]
[1727623997526,0.02858632,65810.0,65809.0,0.2445463]
[1727623997777,0.00347111,65810.0,65809.0,0.2445463]
[1727624001078,0.02856533,65810.0,65809.0,0.2445463]
[1727624003003,0.00347111,65810.0,65809.0,0.2445463]
[1727624003216,0.04892682,65810.0,65809.0,0.2445463]
[1727624003451,0.07403008,65810.0,65809.0,0.2445463]
[1727624003888,0.07417514,65810.0,65809.0,0.2445463]
[1727624007914,0.07417514,65810.0,65809.0,0.163781]
[1727624008144,0.07417514,65810.0,65809.0,0.015827]
[1727624008145,0.23066385,65810.0,65809.0,0.015827]
[1727624008404,0.40814867,65810.0,65809.0,0.015827]
[1727624008641,0.40878215,65810.0,65809.0,0.015827]
[1727624009100,0.40778215,65810.0,65809.0,0.005827]
[1727624009359,0.40678215,65810.0,65809.0,0.000827]
[1727624009837,0.41078215,65810.0,65809.0,0.000827]
[1727624010791,0.36064467,65810.0,65809.0,0.000827]
[1727624011544,0.47454996,65810.0,65809.0,0.004827]
[1727624012288,0.47454996,65810.0,65809.0,0.000827]
[1727624012537,0.47854996,65810.0,65809.0,0.000827]
[1727624013258,0.4784291,65810.0,65809.0,0.000827]
[1727624013491,0.36453757,65810.0,65809.0,0.000827]
[1727624018155,0.36440084,65810.0,65809.0,0.000827]
[1727624018365,0.4554937,65810.0,65809.0,0.000827]
[1727624019382,0.45549537,65810.0,65809.0,0.000827]
[1727624020147,0.36440084,65810.0,65809.0,0.000827]
[1727624020359,0.45549581,65810.0,65809.0,0.000827]
[1727624021253,0.36440084,65810.0,65809.0,0.000827]
[1727624021893,0.38822187,65810.0,65809.0,0.000827]
[1727624022987,0.36440084,65810.0,65809.0,0.000827]
[1727624023169,0.151961,65806.0,65805.0,0.06142302]
[1727624023379,0.19751256,65806.0,65805.0,0.06142302]
[1727624023636,0.0706212,65806.0,65805.0,0.06142302]